fUSD/lending_fUSD_20240105
["ID","MTS","AMOUNT","RATE_DAILY","PERIOD"]
[310332464,1704473555277,-1056.97,0.0003589,3]
[310332465,1704473555287,-1483.19,0.0003589,3]
[310332466,1704473555299,-1304.64,0.0003589,3]
[310332467,1704473555309,-759.04,0.0003589,3]
[310332468,1704473555319,-1800.48,0.0003589,3]
[310332469,1704473555329,-3227.18,0.0003589,3]
[310332470,1704473555338,-2756.04,0.0003589,3]
[310332471,1704473555348,-768.62,0.0003589,3]
[310332472,1704473555357,-3583.58,0.0003589,3]
[310332473,1704473555367,-2834.13,0.0003589,3]
[310332474,1704473555376,-2515.3,0.0003589,3]
[310332475,1704473555385,-5299.03,0.0003589,3]
[310332476,1704473555395,-537.2,0.0003589,3]
[310332477,1704473555404,-664.57,0.0003589,3]
[310332478,1704473555414,-1051.18,0.0003589,3]
[310332479,1704473555424,-512.71,0.0003589,3]
[310332480,1704473555434,-1696.0,0.0003589,3]
[310332481,1704473555444,-2490.22,0.0003589,3]
[310332482,1704473555454,-3340.06,0.0003589,3]
[310332483,1704473555463,-1285.5,0.0003589,3]
[310332484,1704473555473,-500.0,0.0003589,3]
[310332485,1704473555482,-848.87,0.0003589,3]
[310332486,1704473555492,-606.02,0.0003589,3]
[310332487,1704473555502,-554.12,0.0003589,3]
[310332488,1704473555511,-11508.87,0.0003589,3]
[310332489,1704473555521,-1649.63,0.0003589,3]
[310332490,1704473555531,-1188.82,0.0003589,3]
[310332491,1704473555541,-687.41,0.0003589,3]
[310332492,1704473555556,-1161.09,0.0003589,3]
[310332493,1704473555566,-994.25,0.0003589,3]
[310332494,1704473555577,-3783.36,0.0003589,3]
[310332495,1704473555588,-500.0,0.0003589,3]
[310332496,1704473555598,-907.04,0.0003589,3]
[310332497,1704473555609,-4030.69,0.0003589,3]
[310332498,1704473555620,-871.44,0.0003589,3]
[310332499,1704473555630,-2006.85,0.0003589,3]
[310332500,1704473555641,-8452.87,0.0003589,3]
[310332501,1704473555652,-1134.28,0.0003589,3]
[310332502,1704473555662,-566.66,0.0003589,3]
[310332503,1704473555673,-1157.92,0.0003589,3]
[310332504,1704473555683,-512.07,0.0003589,3]
[310332505,1704473555694,-1638.59,0.0003589,3]
[310332506,1704473555704,-1195.76,0.0003589,3]
[310332507,1704473555713,-7740.43,0.0003589,3]
[310332508,1704473555722,-1402.48,0.0003589,3]
[310332509,1704473555732,-1600.27,0.0003589,3]
[310332510,1704473555742,-504.28,0.0003589,3]
[310332511,1704473555752,-2394.98,0.0003589,3]
[310332512,1704473555761,-1206.82,0.0003589,3]
[310332513,1704473555771,-1116.25,0.0003589,3]
[310332514,1704473555781,-1341.2,0.0003589,3]
[310332515,1704473555792,-1246.52,0.0003589,3]
[310332516,1704473555805,-500.0,0.0003589,3]
[310332517,1704473555816,-884.54,0.0003589,3]
[310332518,1704473555826,-3145.82,0.0003589,3]
[310332519,1704473555835,-834.29,0.0003589,3]
[310332520,1704473555846,-1151.41,0.0003589,3]
[310332521,1704473555856,-1393.24,0.0003589,3]
[310332522,1704473555866,-542.06,0.0003589,3]
[310332523,1704473555877,-790.38,0.0003589,3]
[310332524,1704473555887,-456.40105,0.00035898,2]
[310332525,1704473555897,-2000.0,0.000359,2]
[310332526,1704473555910,-3000.0,0.000359,4]
[310332527,1704473555923,-300.0,0.000359,9]
[310332528,1704473555933,-1295.388827,0.000359,2]
[310332529,1704473555942,-208.0,0.0003594,2]
[310332530,1704473555952,-282.0,0.0003594,2]
[310332531,1704473555962,-1876.66,0.00035954,2]
[310332532,1704473555972,-236.93,0.00035954,2]
[310332533,1704473555982,-200.0,0.00035987,15]
[310332534,1704473555993,-200.0,0.00035987,2]
[310332535,1704473556003,-567.40105,0.00035988,3]
[310332536,1704473556013,-567.40105,0.00035998,3]
[310332537,1704473556024,-100000.0,0.00036,6]
[310332538,1704473556033,-214.53674708,0.00036,4]
[310332539,1704473556043,-1000.0,0.00036,7]
[310332540,1704473556054,-1005.0,0.00036,6]
[310332541,1704473556063,-1012.21,0.00036,7]
[310332542,1704473556073,-3098.54,0.00036,7]
[310332543,1704473556083,-16068.57,0.00036,7]
[310332544,1704473556092,-116522.27485165,0.00036,4]
[310332545,1704473556101,-3839.95,0.00036,2]
[310332546,1704473556111,-5000.0,0.00036,2]
[310332547,1704473556120,-5000.0,0.00036,2]
[310332548,1704473556130,-5000.0,0.00036,2]
[310332549,1704473556140,-5000.0,0.00036,2]
[310332550,1704473556151,-1837.72,0.00036,2]
[310332551,1704473556160,-5000.0,0.00036,2]
[310332552,1704473556171,-712.74,0.00036,2]
[310332553,1704473556180,-5000.0,0.00036025,2]
[310332554,1704473556190,-5000.0,0.00036025,2]
[310332555,1704473556199,-5000.0,0.00036025,2]
[310332556,1704473556209,-5000.0,0.00036025,2]
[310332557,1704473556218,-5000.0,0.00036025,2]
[310332558,1704473556228,-5000.0,0.00036025,2]
[310332559,1704473556238,-168.98,0.00036035,2]
[310332560,1704473556248,-5000.0,0.0003605,2]
[310332561,1704473556258,-5000.0,0.0003605,2]
[310332562,1704473556268,-5000.0,0.0003605,2]
[310332563,1704473556278,-749.42,0.0003605,2]
[310332564,1704473556287,-156.68131493,0.00036051,14]
[310332565,1704473556297,-5000.0,0.00036075,2]
[310332566,1704473556306,-5000.0,0.00036075,2]
[310332567,1704473556316,-5000.0,0.00036075,2]
[310332568,1704473556326,-567.40105,0.00036088,3]
[310332569,1704473556336,-150.0,0.00036088,2]
[310332570,1704473556346,-190.4218231,0.00036088,2]
[310332571,1704473556356,-61432.58384289,0.00036089,2]
[310332572,1704473556366,-61432.58384289,0.00036089,2]
[310332573,1704473556376,-61432.58384289,0.00036089,2]
[310332574,1704473556385,-150.34853113,0.00036091,2]
[310332575,1704473556395,-567.40105,0.00036098,2]
[310332576,1704473556405,-5000.0,0.000361,2]
[310332577,1704473556415,-5000.0,0.000361,2]
[310332578,1704473556425,-5000.0,0.000361,2]
[310332579,1704473556436,-201.798318,0.00036116,2]
[310332580,1704473556446,-167.03092,0.00036116,2]
[310332581,1704473556455,-279.378836,0.00036116,2]
[310332582,1704473556465,-442.27263,0.00036116,2]
[310332583,1704473556474,-1546.360562,0.00036116,2]
[310332584,1704473556483,-343.603397,0.00036116,2]
[310332585,1704473556493,-1714.960038,0.00036116,2]
[310332586,1704473556502,-5000.0,0.00036125,2]
[310332587,1704473556511,-5000.0,0.00036125,2]
[310332588,1704473556521,-5000.0,0.00036125,2]
[310332589,1704473556531,-5000.0,0.0003615,2]
[310332590,1704473556541,-5000.0,0.0003615,2]
[310332591,1704473556552,-5000.0,0.0003615,2]
[310332592,1704473556562,-267.75806432,0.00036164,3]
[310332593,1704473556572,-785.36,0.00036164,3]
[310332594,1704473556582,-563.9,0.00036164,3]
[310332595,1704473556592,-679.76,0.00036164,2]
[310332596,1704473556601,-381.03855595,0.00036164,3]
[310332597,1704473556611,-184.81295562,0.00036164,3]
[310332598,1704473556621,-732.22,0.00036164,3]
[310332599,1704473556632,-557.95,0.00036164,3]
[310332600,1704473556641,-711.61,0.00036164,3]
[310332601,1704473556652,-500.0,0.00036164,3]
[310332602,1704473556662,-777.32,0.00036164,3]
[310332603,1704473556672,-202.50070254,0.00036164,3]
[310332604,1704473556682,-592.48,0.00036164,3]
[310332605,1704473556692,-996.51,0.00036164,3]
[310332606,1704473556702,-152.2173092,0.00036164,3]
[310332607,1704473556712,-710.5,0.00036164,3]
[310332608,1704473556722,-666.1,0.00036164,3]
[310332609,1704473556732,-537.71,0.00036164,3]
[310332610,1704473556742,-626.29624909,0.00036164,3]
[310332611,1704473556751,-617.72,0.00036164,3]
[310332612,1704473556761,-647.0,0.00036164,3]
[310332613,1704473556771,-772.2,0.00036164,3]
[310332614,1704473556781,-537.87,0.00036164,3]
[310332615,1704473556791,-417.71933321,0.00036164,3]
[310332616,1704473556803,-1038.34,0.00036164,3]
[310332617,1704473556813,-500.0,0.00036164,3]
[310332618,1704473556822,-500.0,0.00036164,3]
[310332619,1704473556832,-544.08,0.00036164,3]
[310332620,1704473556842,-656.98,0.00036164,3]
[310332621,1704473556852,-216.50815419,0.00036164,3]
[310332622,1704473556862,-669.87,0.00036164,3]
[310332623,1704473556873,-694.38,0.00036164,3]
[310332624,1704473556883,-742.45,0.00036164,3]
[310332625,1704473556894,-544.16,0.00036164,3]
[310332626,1704473556904,-671.99,0.00036164,3]
[310332627,1704473556917,-669.51,0.00036164,3]
[310332628,1704473556928,-548.59,0.00036164,3]
[310332629,1704473556940,-1530.36,0.00036164,3]
[310332630,1704473556951,-583.81,0.00036164,3]
[310332631,1704473556961,-500.0,0.00036164,3]
[310332632,1704473556971,-500.0,0.00036164,3]
[310332633,1704473556982,-754.95,0.00036164,3]
[310332634,1704473556993,-1275.01,0.00036164,3]
[310332635,1704473557003,-843.96,0.00036164,3]
[310332636,1704473557014,-207.89,0.00036164,3]
[310332637,1704473557023,-807.23,0.00036164,3]
[310332638,1704473557034,-721.09,0.00036164,3]
[310332639,1704473557073,-593.3,0.00036164,3]
[310332640,1704473557084,-264.34306958,0.00036164,3]
[310332641,1704473557094,-1537.14,0.00036164,3]
[310332642,1704473557103,-1588.31,0.00036164,3]
[310332643,1704473557113,-562.91,0.00036164,3]
[310332644,1704473557122,-5973.26,0.00036164,3]
[310332645,1704473557132,-1752.6,0.00036164,3]
[310332646,1704473557141,-3119.17,0.00036164,3]
[310332647,1704473557150,-1026.31,0.00036164,3]
[310332648,1704473557159,-1346.93,0.00036164,3]
[310332649,1704473557169,-1520.28,0.00036164,3]
[310332650,1704473557178,-500.0,0.00036164,3]
[310332651,1704473557187,-621.93,0.00036164,3]
[310332652,1704473557197,-871.85,0.00036164,3]
[310332653,1704473557207,-522.5,0.00036164,3]
[310332654,1704473557217,-790.33,0.00036164,3]
[310332655,1704473557226,-2085.78,0.00036164,3]
[310332656,1704473557237,-651.26,0.00036164,3]
[310332657,1704473557246,-1658.28,0.00036164,3]
[310332658,1704473557256,-2368.93,0.00036164,3]
[310332659,1704473557265,-2545.82,0.00036164,3]
[310332660,1704473557274,-5035.78,0.00036164,3]
[310332661,1704473557285,-1615.12,0.00036164,3]
[310332662,1704473557295,-3964.99,0.00036164,3]
[310332663,1704473557308,-900.42,0.00036164,3]
[310332664,1704473557317,-527.61,0.00036164,3]
[310332665,1704473557327,-855.65,0.00036164,3]
[310332666,1704473557338,-3932.79,0.00036164,3]
[310332667,1704473557349,-15880.58,0.00036164,3]
[310332668,1704473557359,-630.59,0.00036164,3]
[310332669,1704473557368,-2821.0,0.00036164,3]
[310332670,1704473557378,-1090.66,0.00036164,3]
[310332671,1704473557388,-1511.19,0.00036164,3]
[310332672,1704473557398,-668.86,0.00036164,3]
[310332673,1704473557408,-1950.6,0.00036164,3]
[310332674,1704473557418,-7990.73,0.00036164,3]
[310332675,1704473557428,-2431.79,0.00036164,3]
[310332676,1704473557438,-1509.04,0.00036164,3]
[310332677,1704473557448,-527.49,0.00036164,3]
[310332678,1704473557457,-555.27,0.00036164,3]
[310332679,1704473557467,-752.06,0.00036164,3]
[310332680,1704473557477,-1289.91,0.00036164,3]
[310332681,1704473557486,-6614.78,0.00036164,3]
[310332682,1704473557495,-1136.89,0.00036164,3]
[310332683,1704473557505,-646.07,0.00036164,3]
[310332684,1704473557514,-500.0,0.00036164,3]
[310332685,1704473557524,-1154.77,0.00036164,3]
[310332686,1704473557533,-588.45,0.00036164,3]
[310332687,1704473557543,-1148.85,0.00036164,3]
[310332688,1704473557553,-864.89,0.00036164,3]
[310332689,1704473557563,-746.81,0.00036164,3]
[310332690,1704473557573,-1086.86,0.00036164,3]
[310332691,1704473557583,-1747.09,0.00036164,3]
[310332692,1704473557593,-585.14,0.00036164,3]
[310332693,1704473557603,-898.8,0.00036164,3]
[310332694,1704473557612,-581.39,0.00036164,3]
[310332695,1704473557622,-2794.23,0.00036164,3]
[310332696,1704473557631,-680.71,0.00036164,3]
[310332697,1704473557641,-2835.72,0.00036164,3]
[310332698,1704473557651,-2858.86,0.00036164,3]
[310332699,1704473557661,-533.41,0.00036164,3]
[310332700,1704473557672,-2517.57,0.00036164,3]
[310332701,1704473557683,-2511.86,0.00036164,3]
[310332702,1704473557694,-2755.52,0.00036164,3]
[310332703,1704473557705,-1222.0,0.00036164,3]
[310332704,1704473557716,-814.18,0.00036164,3]
[310332705,1704473557727,-4236.93,0.00036164,3]
[310332706,1704473557738,-2392.95,0.00036164,3]
[310332707,1704473557749,-1842.01,0.00036164,3]
[310332708,1704473557760,-645.88,0.00036164,3]
[310332709,1704473557771,-804.31,0.00036164,3]
[310332710,1704473557781,-780.05,0.00036164,3]
[310332711,1704473557793,-20128.17,0.00036164,3]
[310332712,1704473557807,-618.16,0.00036164,3]
[310332713,1704473557818,-510.82,0.00036164,3]
[310332714,1704473557828,-1056.97,0.00036164,3]
[310332715,1704473557840,-1483.19,0.00036164,3]
[310332716,1704473557854,-1304.64,0.00036164,3]
[310332717,1704473557866,-759.04,0.00036164,3]
[310332718,1704473557877,-1800.48,0.00036164,3]
[310332719,1704473557889,-3227.18,0.00036164,3]
[310332720,1704473557903,-2756.04,0.00036164,3]
[310332721,1704473557914,-768.62,0.00036164,3]
[310332722,1704473557927,-3583.58,0.00036164,3]
[310332723,1704473557937,-2834.13,0.00036164,3]
[310332724,1704473557948,-2515.3,0.00036164,3]
[310332725,1704473557959,-5299.03,0.00036164,3]
[310332726,1704473557968,-537.2,0.00036164,3]
[310332727,1704473557979,-664.57,0.00036164,3]
[310332728,1704473557989,-1051.18,0.00036164,3]
[310332729,1704473557999,-512.71,0.00036164,3]
[310332730,1704473558009,-1696.0,0.00036164,3]
[310332731,1704473558019,-2490.22,0.00036164,3]
[310332732,1704473558029,-3340.06,0.00036164,3]
[310332733,1704473558045,-1285.5,0.00036164,3]
[310332734,1704473558061,-500.0,0.00036164,3]
[310332735,1704473558071,-848.87,0.00036164,3]
[310332736,1704473558079,-606.02,0.00036164,3]
[310332737,1704473558089,-554.12,0.00036164,3]
[310332738,1704473558099,-11508.87,0.00036164,3]
[310332739,1704473558108,-1649.63,0.00036164,3]
[310332740,1704473558118,-1188.82,0.00036164,3]
[310332741,1704473558127,-687.41,0.00036164,3]
[310332742,1704473558137,-1161.09,0.00036164,3]
[310332743,1704473558147,-994.25,0.00036164,3]
[310332744,1704473558157,-3783.36,0.00036164,3]
[310332745,1704473558166,-500.0,0.00036164,3]
[310332746,1704473558176,-907.04,0.00036164,3]
[310332747,1704473558185,-4030.69,0.00036164,3]
[310332748,1704473558194,-871.44,0.00036164,3]
[310332749,1704473558382,-2006.85,0.00036164,3]
[310332750,1704473558392,-8452.87,0.00036164,3]
[310332751,1704473558402,-1134.28,0.00036164,3]
[310332752,1704473558411,-566.66,0.00036164,3]
[310332753,1704473558421,-1157.92,0.00036164,3]
[310332754,1704473558430,-512.07,0.00036164,3]
[310332755,1704473558440,-1638.59,0.00036164,3]
[310332756,1704473558450,-1195.76,0.00036164,3]
[310332757,1704473558459,-7740.43,0.00036164,3]
[310332758,1704473558472,-1402.48,0.00036164,3]
[310332759,1704473558482,-1600.27,0.00036164,3]
[310332760,1704473558491,-504.28,0.00036164,3]
[310332761,1704473558501,-2394.98,0.00036164,3]
[310332762,1704473558511,-1206.82,0.00036164,3]
[310332763,1704473558521,-1116.25,0.00036164,3]
[310332764,1704473558531,-1341.2,0.00036164,3]
[310332765,1704473558541,-1246.52,0.00036164,3]
[310332766,1704473558551,-500.0,0.00036164,3]
[310332767,1704473558563,-884.54,0.00036164,3]
[310332768,1704473558573,-3145.82,0.00036164,3]
[310332769,1704473558583,-834.29,0.00036164,3]
[310332770,1704473558592,-1151.41,0.00036164,3]
[310332771,1704473558601,-1393.24,0.00036164,3]
[310332772,1704473558611,-542.06,0.00036164,3]
[310332773,1704473558620,-790.38,0.00036164,3]
[310332774,1704473558629,-5000.0,0.00036175,2]
[310332775,1704473558639,-5000.0,0.00036175,2]
[310332776,1704473558648,-567.40105,0.00036188,3]
[310332777,1704473558658,-567.40105,0.00036198,2]
[310332778,1704473558668,-150.0,0.000362,25]
[310332779,1704473558678,-5000.0,0.000362,2]
[310332780,1704473558686,-5000.0,0.000362,2]
[310332781,1704473558695,-5000.0,0.00036225,2]
[310332782,1704473558705,-5000.0,0.00036225,2]
[310332783,1704473558714,-5000.0,0.0003625,2]
[310332784,1704473558724,-5000.0,0.0003625,2]
[310332785,1704473558733,-5000.0,0.0003625,2]
[310332786,1704473558743,-50000.0,0.00036251,15]
[310332787,1704473558752,-154.501525,0.00036265,2]
[310332788,1704473558762,-500.0,0.0003627,10]
[310332789,1704473558771,-1534.22169715,0.00036275,2]
[310332790,1704473559194,-279.80525003,0.0003178,2]
[310332791,1704473559207,-220.19474997,0.0003178,2]
[310332792,1704473559216,-778.1547495,0.00036275,2]
[310332793,1704473559229,-266.25,0.00036275,2]
[310332794,1704473559243,-289.72057995,0.00036275,2]
[310332795,1704473559285,-546.23322818,0.00034246,3]
[310332796,1704473559469,-500.0,0.00030136,2]
[310332797,1704473559479,-572.52362706,0.00030136,2]
[310332798,1704473559489,-281.09783004,0.0003041,2]
[310332799,1704473559499,-311.78,0.00032054,2]
[310332800,1704473559509,-211.10677182,0.00034246,3]
[310332801,1704473559519,-757.34,0.0003452,3]
[310332802,1704473559529,-1476.5455514,0.00034794,3]
[310332803,1704473559541,-49.7744486,0.00034794,3]
[310332804,1704473559551,-757.34,0.00034794,3]
[310332805,1704473559562,-1526.32,0.00035068,3]
[310332806,1704473559572,-757.34,0.00035068,3]
[310332807,1704473559581,-1526.32,0.00035342,3]
[310332808,1704473559591,-757.34,0.00035342,3]
[310332809,1704473559600,-501.35,0.00035616,2]
[310332810,1704473559610,-87.37275141,0.00035616,3]
[310332811,1704473559622,-1438.94724859,0.00035616,3]
[310332812,1704473559632,-501.35,0.0003589,2]
[310332813,1704473559642,-1526.32,0.0003589,3]
[310332814,1704473559652,-501.35,0.00036164,2]
[310332815,1704473559661,-2131.6529734,0.00036275,2]
[310332816,1704473559671,-5000.0,0.00036275,2]
[310332817,1704473559680,-5000.0,0.00036275,2]
[310332818,1704473559690,-567.40105,0.00036288,3]
[310332819,1704473559700,-567.40105,0.00036298,2]
[310332820,1704473559709,-8248.29,0.000363,7]
[310332821,1704473559718,-3098.54,0.000363,7]
[310332822,1704473559728,-16068.57,0.000363,7]
[310332823,1704473559738,-157.22,0.000363,3]
[310332824,1704473559748,-157.22,0.000363,3]
[310332825,1704473559757,-5000.0,0.000363,2]
[310332826,1704473559767,-5000.0,0.000363,2]
[310332827,1704473559777,-3890.9,0.000363,2]
[310332828,1704473559786,-5000.0,0.00036325,2]
[310332829,1704473559796,-5000.0,0.00036325,2]
[310332830,1704473559806,-5000.0,0.0003635,2]
[310332831,1704473559815,-5000.0,0.0003635,2]
[310332832,1704473559825,-5000.0,0.00036375,2]
[310332833,1704473559834,-5000.0,0.00036375,2]
[310332834,1704473559843,-567.40105,0.00036388,3]
[310332835,1704473559853,-277.67,0.00036391,2]
[310332836,1704473559862,-500.0,0.00036393,2]
[310332837,1704473559871,-151.0,0.00036394,2]
[310332838,1704473559881,-678.40105,0.00036398,2]
[310332839,1704473559890,-5000.0,0.000364,2]
[310332840,1704473559901,-5000.0,0.000364,2]
[310332841,1704473559911,-150.0,0.00036426,2]
[310332842,1704473559925,-190.4218231,0.00036426,2]
[310332843,1704473559934,-140.13958652,0.00036438,3]
[310332844,1704473559952,-1526.32,0.00036164,3]
[310332845,1704473559961,-645.26612181,0.00036438,3]
[310332846,1704473559971,-564.04715386,0.00036438,3]
[310332847,1704473559981,-679.93574322,0.00036438,2]
[310332848,1704473559990,-558.0951886,0.00036438,3]
[310332849,1704473560000,-711.77,0.00036438,3]
[310332850,1704473560010,-430.29255738,0.00036438,3]
[310332851,1704473560019,-777.43969235,0.00036438,3]
[310332852,1704473560030,-592.6742353,0.00036438,3]
[310332853,1704473560040,-264.69098389,0.00036438,3]
[310332854,1704473560063,-731.97901611,0.00036438,3]
[310332855,1704473560073,-710.72304203,0.00036438,3]
[310332856,1704473560082,-666.19828945,0.00036438,3]
[310332857,1704473560092,-537.74606631,0.00036438,3]
[310332858,1704473560102,-617.88808576,0.00036438,3]
[310332859,1704473560111,-647.19154345,0.00036438,3]
[310332860,1704473560121,-772.29329276,0.00036438,3]
[310332861,1704473560130,-537.9186067,0.00036438,3]
[310332862,1704473560140,-1038.35203053,0.00036438,3]
[310332863,1704473560149,-161.77910355,0.00036438,3]
[310332864,1704473560160,-476.90809146,0.00036438,3]
[310332865,1704473560169,-544.27385877,0.00036438,3]
[310332866,1704473560178,-657.09807755,0.00036438,3]
[310332867,1704473560188,-669.92636059,0.00036438,3]
[310332868,1704473560200,-694.41,0.00036438,3]
[310332869,1704473560209,-742.4680254,0.00036438,3]
[310332870,1704473560218,-247.84490958,0.00036438,3]
[310332871,1704473560726,-224.4293495,0.00028796,2]
[310332872,1704473560736,-1273.71782346,0.00030135,4]
[310332873,1704473560746,-667.60282704,0.00030135,4]
[310332874,1704473560769,-61.45199192,0.00030135,4]
[310332875,1704473560779,-500.0,0.00030136,2]
[310332876,1704473560789,-303.40800808,0.00030136,2]
[310332881,1704473652038,2101.0,0.0002,2]
[310332882,1704473652064,1589.320001,0.0002,2]
[310332883,1704473667076,791.0371945,0.00025,7]
[310332884,1704473670688,400.0,0.00025,30]
[310332885,1704473675147,175.81,0.00022,2]
[310332886,1704473685392,-175.81,0.00022548,2]
[310332887,1704473685412,-2469.16985577,0.00022898,2]
[310332888,1704473685433,-355.02014423,0.00022899,2]
[310332889,1704473703372,1408.40094432,0.000223,2]
[310332890,1704473764734,-1000.0,0.00022892,2]
[310332891,1704473885072,-1000.0,0.00022886,2]
[310332892,1704473913381,300.0,0.00022,2]
[310332893,1704473916249,150.0,0.00022,2]
[310332894,1704474284387,175.81,0.00022,2]
[310332933,1704474631488,-1061.43151955,0.00022547,2]
[310332934,1704474631498,-195.99458152,0.00022548,2]
[310332935,1704474631508,-9537.82389893,0.00022892,2]
[310332936,1704474631662,-403.9,0.00022892,2]
[310332937,1704474631677,-3678.99343868,0.00022892,2]
[310332938,1704474631695,-2818.86698107,0.00022892,2]
[310332939,1704474631708,-481.0,0.00022892,2]
[310332968,1704474637515,-400.0,0.00022892,2]
[310332969,1704474637645,-588.28150611,0.00022892,2]
[310332970,1704474637702,-3821.63373186,0.00022892,2]
[310332971,1704474638113,-1083.96288,0.00022892,2]
[310332973,1704474638130,-533.41565774,0.00022892,2]
[310332974,1704474638163,-21279.02060561,0.00022892,2]
[310332975,1704474638174,-1979.6609,0.00022892,2]
[310332976,1704474638184,-350.39084548,0.00022899,2]
[310332977,1704474638193,-2525.15556548,0.000229,2]
[310332978,1704474638202,-215.82517112,0.000229,2]
[310332979,1704474638212,-946.90812621,0.000229,2]
[310332980,1704474638221,-3761.06297707,0.0002299,4]
[310332981,1704474638231,-190.83209518,0.0002299,2]
[310332982,1704474638239,-461559.80273399,0.00022992,2]
[310332983,1704474638252,-2293.12344247,0.00022992,2]
[310332984,1704474638262,-939.42813318,0.00022999,2]
[310332985,1704474638272,-156.24175637,0.00023,2]
[310332986,1704474638282,-4401.84433044,0.00023,2]
[310332987,1704474638292,-571123.55522007,0.00023,2]
[310332988,1704474638304,-8640.0,0.00023,2]
[310332990,1704474640886,-190560.21074926,0.00023,2]
[310332991,1704474640900,-637.19411128,0.00023,2]
[310332992,1704474641033,-876.93469392,0.00023,2]
[310332993,1704474641045,-500.0,0.00023,2]
[310332994,1704474641109,-389.84500329,0.00023,2]
[310332995,1704474641121,-404.22905947,0.00023,2]
[310333001,1704474642447,-20031.81000132,0.00023,2]
[310333003,1704474642457,-23194.10999868,0.00023,2]
[310333005,1704474642469,-136753.95862022,0.00023,2]
[310333006,1704474642480,-555267.8306362,0.00023,2]
[310333007,1704474642528,-510.54743615,0.00023,2]
[310333008,1704474642596,-721.37807894,0.00023,2]
[310333009,1704474642608,-2475.6650389,0.00023,2]
[310333010,1704474642621,-1338.65015484,0.00023,2]
[310333011,1704474642677,-4186.85206977,0.00023,2]
[310333012,1704474642689,-1692.29948057,0.00023,2]
[310333013,1704474642709,-31706.88216562,0.00023,2]
[310333014,1704474642722,-268.26824211,0.00023,2]
[310333015,1704474642739,-481.54441398,0.00023,2]
[310333016,1704474642751,-15318.37728905,0.00023,2]
[310333017,1704474642763,-771.3662182,0.00023,2]
[310333018,1704474642784,-4545.38426351,0.00023,2]
[310333019,1704474645546,-276.96499416,0.00023,2]
[310333020,1704474645569,-1702.06133613,0.00023,2]
[310333021,1704474645586,-1293.69,0.00023,2]
[310333022,1704474645729,-1110.00000001,0.00023,2]
[310333023,1704474645765,-4012.65618003,0.00023,2]
[310333024,1704474645778,-4984.07681,0.00023,2]
[310333025,1704474645839,-968.6,0.00023,2]
[310333026,1704474645851,-4865.00001,0.00023,2]
[310333027,1704474671704,1772.31981003,0.00021848,7]
[310333028,1704474894025,4401.84433044,0.00021848,2]
[310333029,1704475057998,1796.21981604,0.00022998,10]
[310333030,1704475073989,1197.47987736,0.00022998,10]
[310333031,1704475092273,997.8998978,0.00022998,10]
[310333032,1704475110277,519.90584675,0.00022998,10]
[310333033,1704475128280,519.90584675,0.00022998,10]
[310333034,1704475146298,519.90584675,0.00022998,10]
[310333035,1704475167850,519.90584675,0.00022998,10]
[310333036,1704475183306,-553.00582169,0.00022768,2]
[310333037,1704475183328,-337.43640856,0.00022769,2]
[310333038,1704475183353,-349.75922357,0.000229,2]
[310333039,1704475183375,-1579.349333,0.0002299,2]
[310333040,1704475183397,-363.22558303,0.00022998,2]
[310333041,1704475183419,-769.50424906,0.00022999,2]
[310333042,1704475183444,-157.50597676,0.00022999,2]